[Event "XVIII Orsha GM 2020"]
[Site "Orsha"]
[Date "2020.01.19"]
[Round "2.1"]
[White "Lazavik, Denis"]
[Black "Teterev, Vitaly"]
[Result "1/2-1/2"]
[ECO "D78"]
[WhiteElo "2411"]
[BlackElo "2476"]
[Annotator "ChessBase"]
[PlyCount "121"]
[EventDate "2020.01.18"]
[EventType "tourn"]
[EventCountry "BLR"]
[SourceTitle "playchess.com"]
[Source "ChessBase"]
[SourceQuality "1"]
[TimeControl "5400+30"]

1. d4 {[%emt 0:00:00]} Nf6 {[%emt 0:01:38]} 2. c4 {[%emt 0:00:04]} g6 {[%emt 0:00:04]} 3. g3 {[%emt 0:00:26]} c6 {[%emt 0:00:04]} 4. Nf3 {[%emt 0:00:32]} Bg7 {[%emt 0:00:18]} 5. Bg2 {[%emt 0:00:28]} d5 {[%emt 0:00:11]} 6. b3 {[%emt 0:00:28]} O-O {[%emt 0:00:11]} 7. Bb2 {[%emt 0:02:06]} Bf5 {[%emt 0:01:12]} 8. O-O {[%emt 0:01:10]} Nbd7 {[%emt 0:00:29]} 9. e3 {[%emt 0:00:45]} b5 {[%emt 0:01:37]} 10. cxb5 {[%emt 0:19:58]} cxb5 {[%emt 0:01:06]} 11. Nc3 {[%emt 0:02:43]} b4 {[%emt 0:06:50]} 12. Na4 {[%emt 0:01:21]} Ne4 {[%emt 0:20:38]} 13. a3 {[%emt 0:11:20]} a5 {[%emt 0:04:14]} 14. axb4 {[%emt 0:06:03]} axb4 {[%emt 0:01:00]} 15. Qe1 {[%emt 0:02:31]} Qb8 {[%emt 0:03:21]} 16. Qe2 {[%emt 0:15:33]} Rc8 {[%emt 0:08:48]} 17. Nh4 {[%emt 0:03:29]} Be6 {[%emt 0:01:59]} 18. Rfc1 {[%emt 0:01:00]} Nc3 {[%emt 0:05:19]} 19. Nxc3 {[%emt 0:01:33]} Rxa1 {[%emt 0:01:21]} 20. Bxa1 {[%emt 0:00:13]} bxc3 {[%emt 0:00:04]} 21. Qc2 {[%emt 0:04:28]} Bf6 {[%emt 0:03:34]} 22. Bxc3 {[%emt 0:01:08]} Bxh4 {[%emt 0:00:12]} 23. gxh4 {[%emt 0:00:05]} Nf6 {[%emt 0:00:12]} 24. f3 {[%emt 0:01:38]} Bf5 {[%emt 0:03:28]} 25. Qd1 {[%emt 0:03:12]} Qb6 {[%emt 0:02:18]} 26. Bb2 {[%emt 0:02:15]} Ra8 {[%emt 0:04:01]} 27. Ra1 {[%emt 0:00:24]} Rb8 {[%emt 0:05:03]} 28. Ba3 {[%emt 0:01:22]} Qe6 {[%emt 0:03:27]} 29. Kf2 {[%emt 0:00:28]} Bh3 {[%emt 0:09:05]} 30. Qd3 {[%emt 0:06:08]} Bf5 {[%emt 0:03:03]} 31. Qc3 {[%emt 0:00:40]} Ne8 {[%emt 0:03:58]} 32. Bc5 {[%emt 0:01:37]} Qf6 {[%emt 0:00:24]} 33. Kg1 {[%emt 0:01:47]} Qxh4 {[%emt 0:00:28]} 34. b4 {[%emt 0:00:45]} Bh3 {[%emt 0:04:13]} 35. Bxh3 {[%emt 0:05:06]} Qxh3 {[%emt 0:00:01]} 36. Rf1 {[%emt 0:00:14]} Qe6 {[%emt 0:01:39]} 37. Qd3 {[%emt 0:00:37]} Nc7 {[%emt 0:01:15]} 38. Ra1 {[%emt 0:00:33]} Nb5 {[%emt 0:00:29]} 39. Rb1 {[%emt 0:01:46]} Qd7 {[%emt 0:00:25]} 40. Ra1 {[%emt 0:00:29]} Kg7 {[%emt 0:00:25]} 41. e4 {[%emt 0:00:38]} e6 {[%emt 0:01:26]} 42. e5 {[%emt 0:00:15]} Qd8 {[%emt 0:00:15]} 43. Qe3 {[%emt 0:00:58]} Ra8 {[%emt 0:00:34]} 44. Rxa8 Qxa8 {[%emt 0:00:01]} 45. Qg5 {[%emt 0:00:47]} Qe8 {[%emt 0:01:28]} 46. h4 {[%emt 0:00:44]} h5 {[%emt 0:00:19]} 47. Kg2 {[%emt 0:00:32]} Qd7 {[%emt 0:00:32]} 48. Qf6+ {[%emt 0:00:32]} Kg8 {[%emt 0:00:18]} 49. Kg3 {[%emt 0:02:14]} Qe8 {[%emt 0:00:41]} 50. Qf4 {[%emt 0:00:36]} Qd8 {[%emt 0:00:32]} 51. Qf6 {[%emt 0:00:21]} Qe8 {[%emt 0:00:33]} 52. Kg2 {[%emt 0:00:26]} Nc3 {[%emt 0:00:21]} 53. Qe7 {[%emt 0:00:50]} Qxe7 {[%emt 0:00:48]} 54. Bxe7 {[%emt 0:00:05]} Nb5 {[%emt 0:00:06]} 55. Bc5 {[%emt 0:00:08]} Kg7 {[%emt 0:00:40]} 56. Kg3 {[%emt 0:00:23]} f6 {[%emt 0:00:19]} 57. exf6+ {[%emt 0:00:51]} Kxf6 {[%emt 0:00:01]} 58. Kf4 {[%emt 0:00:07]} Na3 {[%emt 0:00:55]} 59. Bb6 {[%emt 0:01:24]} Kf7 {[%emt 0:00:29]} 60. Bc5 {[%emt 0:00:29]} Kf6 {[%emt 0:00:05]} 61. Bb6 {[%emt 0:01:45] Ke5+ Ke4+} 1/2-1/2

[Event "XVIII Orsha GM 2020"]
[Site "Orsha"]
[Date "2020.01.19"]
[Round "2.2"]
[White "Bryakin, Mikhail"]
[Black "Zarubitski, Viachaslau"]
[Result "1/2-1/2"]
[ECO "D02"]
[WhiteElo "2442"]
[BlackElo "2451"]
[Annotator "ChessBase"]
[PlyCount "88"]
[EventDate "2020.01.18"]
[EventType "tourn"]
[EventCountry "BLR"]
[SourceTitle "playchess.com"]
[Source "ChessBase"]
[SourceQuality "1"]
[TimeControl "5400+30"]

1. d4 {[%emt 0:14:40]} d5 {[%emt 0:00:00]} 2. Nf3 {[%emt 0:00:09]} Nf6 {[%emt 0:00:00]} 3. c4 {[%emt 0:00:07]} c6 {[%emt 0:00:00]} 4. e3 {[%emt 0:00:32]} g6 {[%emt 0:00:20]} 5. Be2 {[%emt 0:01:41]} Bg7 {[%emt 0:00:07]} 6. O-O {[%emt 0:00:10]} O-O {[%emt 0:00:10]} 7. Nbd2 {[%emt 0:01:11]} Nbd7 {[%emt 0:04:34]} 8. b3 {[%emt 0:02:12]} b6 {[%emt 0:00:14]} 9. Ba3 {[%emt 0:03:25]} Bb7 {[%emt 0:03:47]} 10. Rc1 {[%emt 0:01:25]} Re8 {[%emt 0:00:47]} 11. cxd5 {[%emt 0:15:37]} cxd5 {[%emt 0:03:50]} 12. Bb5 {[%emt 0:03:29]} Bf8 {[%emt 0:36:47]} 13. Ne5 {[%emt 0:03:29]} e6 {[%emt 0:01:26]} 14. Bxf8 {[%emt 0:01:07]} Rxf8 {[%emt 0:00:30]} 15. f4 {[%emt 0:00:45]} Rc8 {[%emt 0:01:56]} 16. Qe2 {[%emt 0:11:10]} Nb8 {[%emt 0:03:20]} 17. g4 {[%emt 0:08:33]} Qe7 {[%emt 0:03:21]} 18. g5 {[%emt 0:00:48]} Nh5 {[%emt 0:03:43]} 19. Nb1 {[%emt 0:05:09]} Rc7 {[%emt 0:01:38]} 20. Rxc7 {[%emt 0:04:38]} Qxc7 {[%emt 0:00:45]} 21. Bd3 {[%emt 0:00:11]} Nd7 {[%emt 0:08:17]} 22. Nxd7 {[%emt 0:01:34]} Qxd7 {[%emt 0:00:01]} 23. Rc1 {[%emt 0:02:40]} Rc8 {[%emt 0:00:35]} 24. Rxc8+ {[%emt 0:00:42]} Qxc8 {[%emt 0:00:07]} 25. Qc2 {[%emt 0:00:26]} Qxc2 {[%emt 0:00:45]} 26. Bxc2 {[%emt 0:00:03]} h6 {[%emt 0:02:56]} 27. h4 {[%emt 0:00:29]} hxg5 {[%emt 0:00:15]} 28. hxg5 {[%emt 0:00:06]} Ng7 {[%emt 0:03:13]} 29. Nd2 {[%emt 0:00:33]} Ne8 {[%emt 0:00:16]} 30. Nf3 {[%emt 0:00:16]} Nd6 {[%emt 0:00:33]} 31. Ne5 {[%emt 0:00:30]} Kf8 {[%emt 0:05:10]} 32. Bd3 {[%emt 0:00:15]} Ke8 {[%emt 0:01:39]} 33. Kf2 {[%emt 0:00:11]} Kd8 {[%emt 0:00:19]} 34. Ke2 {[%emt 0:00:30]} Kc7 {[%emt 0:00:19]} 35. Kd2 {[%emt 0:02:05]} Bc6 {[%emt 0:00:10]} 36. Kc3 {[%emt 0:00:16]} Be8 {[%emt 0:02:07]} 37. Kb4 {[%emt 0:01:28]} Kb7 {[%emt 0:00:28]} 38. a3 {[%emt 0:01:27]} Kc7 {[%emt 0:00:07]} 39. Ba6 {[%emt 0:00:46]} Nf5 {[%emt 0:02:50]} 40. Ng4 {[%emt 0:01:58]} Nd6 {[%emt 0:00:07]} 41. a4 {[%emt 0:01:07]} Bc6 {[%emt 0:00:13]} 42. Ne5 {[%emt 0:00:46]} Be8 {[%emt 0:00:17]} 43. a5 {[%emt 0:01:29]} Bc6 {[%emt 0:00:16]} 44. Bd3 {[%emt 0:00:54]} Be8 {[%emt 0:00:13]} 1/2-1/2

[Event "XVIII Orsha GM 2020"]
[Site "Orsha"]
[Date "2020.01.19"]
[Round "2.3"]
[White "Nozdrachev, Leonid"]
[Black "Gleizerov, Evgeny"]
[Result "1/2-1/2"]
[ECO "A95"]
[WhiteElo "2404"]
[BlackElo "2508"]
[Annotator "ChessBase"]
[PlyCount "44"]
[EventDate "2020.01.18"]
[EventType "tourn"]
[EventCountry "BLR"]
[SourceTitle "playchess.com"]
[Source "ChessBase"]
[SourceQuality "1"]
[TimeControl "5400+30"]

1. d4 {[%emt 0:00:00]} e6 {[%emt 0:00:57]} 2. c4 {[%emt 0:00:00]} f5 {[%emt 0:00:03]} 3. g3 {[%emt 0:00:03]} Nf6 {[%emt 0:00:03]} 4. Bg2 {[%emt 0:00:06]} d5 {[%emt 0:00:03]} 5. Nf3 {[%emt 0:00:30]} Be7 {[%emt 0:00:05]} 6. O-O {[%emt 0:00:09]} O-O {[%emt 0:00:02]} 7. Qc2 {[%emt 0:00:51]} Ne4 {[%emt 0:00:21]} 8. Nc3 {[%emt 0:00:19]} c6 {[%emt 0:00:04]} 9. Ne1 {[%emt 0:01:08]} Bf6 {[%emt 0:09:47]} 10. Be3 {[%emt 0:02:15]} Nd6 {[%emt 0:03:31]} 11. cxd5 {[%emt 0:03:36]} cxd5 {[%emt 0:02:24]} 12. Bf4 {[%emt 0:08:18]} Nc6 {[%emt 0:02:01]} 13. e3 {[%emt 0:01:10]} g5 {[%emt 0:10:35]} 14. Bxd6 {[%emt 0:01:41]} Qxd6 {[%emt 0:00:01]} 15. f4 {[%emt 0:04:46]} Bd7 {[%emt 0:06:22]} 16. Nf3 {[%emt 0:02:37]} gxf4 {[%emt 0:09:43]} 17. gxf4 {[%emt 0:00:35]} Kh8 {[%emt 0:00:05]} 18. Ne5 {[%emt 0:03:13]} Qe7 {[%emt 0:02:59]} 19. Kh1 {[%emt 0:05:13]} Bxe5 {[%emt 0:04:34]} 20. dxe5 {[%emt 0:07:20]} Rg8 {[%emt 0:00:40]} 21. Qf2 {[%emt 0:03:55]} Rg6 {[%emt 0:05:22]} 22. Rg1 {[%emt 0:04:43]} Rag8 {[%emt 0:00:29]} 1/2-1/2

[Event "XVIII Orsha GM 2020"]
[Site "Orsha"]
[Date "2020.01.19"]
[Round "2.4"]
[White "Pang, Tao"]
[Black "Zhukovskiy, Vadim M."]
[Result "0-1"]
[ECO "D44"]
[WhiteElo "2367"]
[BlackElo "1898"]
[Annotator "ChessBase"]
[PlyCount "80"]
[EventDate "2020.01.18"]
[EventType "tourn"]
[EventCountry "BLR"]
[SourceTitle "playchess.com"]
[Source "ChessBase"]
[SourceQuality "1"]
[TimeControl "5400+30"]

1. d4 {[%emt 0:00:00]} Nf6 {[%emt 0:00:00]} 2. c4 {[%emt 0:00:00]} e6 {[%emt 0:00:00]} 3. Nc3 {[%emt 0:00:19]} d5 {[%emt 0:00:00]} 4. Nf3 {[%emt 0:00:42]} c6 {[%emt 0:00:10]} 5. Bg5 {[%emt 0:01:17]} dxc4 {[%emt 0:00:17]} 6. e4 {[%emt 0:00:39]} b5 {[%emt 0:00:04]} 7. e5 {[%emt 0:00:14]} h6 {[%emt 0:00:04]} 8. Bh4 {[%emt 0:00:04]} g5 {[%emt 0:00:05]} 9. Nxg5 {[%emt 0:00:02]} hxg5 {[%emt 0:00:06]} 10. Bxg5 {[%emt 0:00:03]} Nbd7 {[%emt 0:00:49]} 11. exf6 {[%emt 0:00:22]} Bb7 {[%emt 0:05:15]} 12. g3 {[%emt 0:01:49]} c5 {[%emt 0:00:07]} 13. d5 {[%emt 0:00:56]} Qb6 {[%emt 0:00:12]} 14. Bg2 {[%emt 0:42:24]} O-O-O {[%emt 0:00:10]} 15. O-O {[%emt 0:01:38]} b4 {[%emt 0:00:05]} 16. dxe6 {[%emt 0:12:12]} Bxg2 {[%emt 0:01:52]} 17. Kxg2 {[%emt 0:00:06]} Qxe6 {[%emt 0:08:50]} 18. Qd5 {[%emt 0:00:07]} Qh3+ {[%emt 0:15:24]} 19. Kf3 {[%emt 0:01:47]} Nb8 {[%emt 0:01:12]} 20. Qxf7 {[%emt 0:01:55]} Nc6 {[%emt 0:13:48]} 21. Bf4 {[%emt 0:00:04]} Rd3+ {[%emt 0:00:07]} 22. Ke4 {[%emt 0:00:45]} Rd4+ {[%emt 0:00:07]} 23. Ke3 {[%emt 0:00:25]} Rxf4 {[%emt 0:04:53]} 24. Nb5 {[%emt 0:02:26]} Rf3+ {[%emt 0:05:51]} 25. Ke2 {[%emt 0:00:03]} Be7 {[%emt 0:00:32]} 26. Nxa7+ {[%emt 0:01:13]} Nxa7 {[%emt 0:00:04]} 27. Kxf3 {[%emt 0:04:31]} Nc6 {[%emt 0:00:06]} 28. Qd5 {[%emt 0:03:06]} Nd4+ {[%emt 0:00:11]} 29. Ke3 {[%emt 0:00:49]} Qh6+ {[%emt 0:02:52]} 30. f4 {[%emt 0:00:13]} Qxf6 {[%emt 0:00:05]} 31. Rf2 {[%emt 0:01:19]} Rd8 {[%emt 0:01:01]} 32. Qxc4 {[%emt 0:01:55]} Nf5+ {[%emt 0:00:59]} 33. Kf3 {[%emt 0:00:18]} Qc6+ {[%emt 0:00:11]} 34. Ke2 {[%emt 0:00:35]} Nd4+ {[%emt 0:04:17]} 35. Ke3 {[%emt 0:01:05]} Bf6 {[%emt 0:00:16]} 36. Rc1 {[%emt 0:08:22]} Nf5+ {[%emt 0:00:20]} 37. Ke2 {[%emt 0:00:07]} Qe8+ {[%emt 0:00:04]} 38. Kf3 {[%emt 0:00:25]} Qh5+ {[%emt 0:00:08]} 39. g4 {[%emt 0:01:12]} Qh3+ {[%emt 0:00:13]} 40. Ke2 {[%emt 0:00:01]} Re8+ {[%emt 0:00:48]} 0-1

[Event "XVIII Orsha GM 2020"]
[Site "Orsha"]
[Date "2020.01.19"]
[Round "2.5"]
[White "Afanasiev, Nikita"]
[Black "Nozdrachev, Vladislav"]
[Result "0-1"]
[ECO "B31"]
[WhiteElo "2516"]
[BlackElo "2494"]
[Annotator "ChessBase"]
[PlyCount "144"]
[EventDate "2020.01.18"]
[EventType "tourn"]
[EventCountry "BLR"]
[SourceTitle "playchess.com"]
[Source "ChessBase"]
[SourceQuality "1"]
[TimeControl "5400+30"]

1. e4 {[%emt 0:12:16]} c5 {[%emt 0:00:11]} 2. Nf3 {[%emt 0:00:42]} Nc6 {[%emt 0:00:12]} 3. Bb5 {[%emt 0:01:28]} g6 {[%emt 0:00:21]} 4. O-O {[%emt 0:00:44]} Bg7 {[%emt 0:00:06]} 5. Bxc6 {[%emt 0:03:47]} dxc6 {[%emt 0:00:08]} 6. d3 {[%emt 0:00:05]} Nf6 {[%emt 0:00:04]} 7. Nc3 {[%emt 0:00:51]} O-O {[%emt 0:06:19]} 8. h3 {[%emt 0:01:55]} Nd7 {[%emt 0:00:23]} 9. Be3 {[%emt 0:01:22]} e5 {[%emt 0:00:26]} 10. Qd2 {[%emt 0:02:31]} Re8 {[%emt 0:00:26]} 11. Bh6 {[%emt 0:06:41]} Bh8 {[%emt 0:06:54]} 12. a3 {[%emt 0:09:38]} Qe7 {[%emt 0:04:03]} 13. Nd1 {[%emt 0:12:21]} Nf8 {[%emt 0:06:20]} 14. Ne3 {[%emt 0:05:21]} Ne6 {[%emt 0:04:49]} 15. Rae1 {[%emt 0:04:30]} a5 {[%emt 0:05:31]} 16. a4 {[%emt 0:05:14]} Nd4 {[%emt 0:05:15]} 17. Nxd4 {[%emt 0:09:13]} cxd4 {[%emt 0:00:29]} 18. Nc4 {[%emt 0:00:05]} Be6 {[%emt 0:02:20]} 19. b3 {[%emt 0:01:42]} b5 {[%emt 0:05:15]} 20. Nb2 {[%emt 0:03:19]} Qh4 {[%emt 0:01:44]} 21. Qg5 {[%emt 0:03:45]} Bf6 {[%emt 0:01:37]} 22. Qxh4 {[%emt 0:04:32]} Bxh4 {[%emt 0:00:05]} 23. Ra1 {[%emt 0:00:04]} f5 {[%emt 0:00:21]} 24. Bd2 {[%emt 0:00:26]} Bd8 {[%emt 0:01:12]} 25. Kh2 {[%emt 0:05:43]} h5 {[%emt 0:02:29]} 26. Rfe1 {[%emt 0:01:11]} f4 {[%emt 0:00:30]} 27. g3 {[%emt 0:00:13]} g5 {[%emt 0:00:11]} 28. Rg1 {[%emt 0:01:00]} Kf7 {[%emt 0:01:03]} 29. Kg2 {[%emt 0:01:41]} Be7 {[%emt 0:00:53]} 30. Ra2 {[%emt 0:00:58]} Bb4 {[%emt 0:01:20]} 31. Bxb4 {[%emt 0:00:32]} axb4 {[%emt 0:00:05]} 32. Rga1 {[%emt 0:00:08]} Rac8 {[%emt 0:03:26]} 33. Rf1 {[%emt 0:01:06]} Bd7 {[%emt 0:00:27]} 34. f3 {[%emt 0:00:50]} fxg3 {[%emt 0:00:15]} 35. Kxg3 {[%emt 0:00:06]} Rg8 {[%emt 0:00:33]} 36. Kg2 {[%emt 0:00:39]} Ke7 {[%emt 0:00:09]} 37. axb5 {[%emt 0:01:10]} cxb5 {[%emt 0:00:05]} 38. Nd1 {[%emt 0:00:02]} g4 {[%emt 0:02:03]} 39. hxg4 {[%emt 0:01:00]} hxg4 {[%emt 0:00:04]} 40. Nf2 {[%emt 0:00:37]} gxf3+ {[%emt 0:02:24]} 41. Kxf3 {[%emt 0:00:01]} Rcf8+ {[%emt 0:00:19]} 42. Ke2 {[%emt 0:00:04]} Rg3 {[%emt 0:00:05]} 43. Raa1 {[%emt 0:00:15]} Re3+ {[%emt 0:00:23]} 44. Kd2 {[%emt 0:00:01]} Ref3 {[%emt 0:00:32]} 45. Ke2 {[%emt 0:00:09]} R3f4 {[%emt 0:00:19]} 46. Rae1 {[%emt 0:00:34]} Kd6 {[%emt 0:00:51]} 47. Ra1 {[%emt 0:00:15]} Kc5 {[%emt 0:00:05]} 48. Rac1 {[%emt 0:00:12]} Be8 {[%emt 0:00:25]} 49. Ra1 {[%emt 0:02:02]} Bh5+ {[%emt 0:00:16]} 50. Ke1 {[%emt 0:00:04]} Rf3 {[%emt 0:00:05]} 51. Ra6 {[%emt 0:00:48]} Re3+ {[%emt 0:06:33]} 52. Kd2 {[%emt 0:00:01]} Re2+ {[%emt 0:00:06]} 53. Kc1 {[%emt 0:00:03]} Bg4 {[%emt 0:00:30]} 54. Ra1 {[%emt 0:02:32]} Rfxf2 {[%emt 0:04:27]} 55. Rxf2 {[%emt 0:00:05]} Rxf2 {[%emt 0:00:02]} 56. Ra8 {[%emt 0:00:08]} Rf1+ {[%emt 0:00:13]} 57. Kb2 {[%emt 0:00:07]} Kd6 {[%emt 0:00:16]} 58. Rb8 {[%emt 0:00:14]} Bd7 {[%emt 0:00:05]} 59. Rh8 {[%emt 0:00:08]} Ke6 {[%emt 0:00:40]} 60. Rh6+ {[%emt 0:00:18]} Rf6 {[%emt 0:00:07]} 61. Rh8 {[%emt 0:00:03]} Rg6 {[%emt 0:00:13]} 62. Rb8 {[%emt 0:00:09]} Kf6 {[%emt 0:00:11]} 63. Rd8 {[%emt 0:00:19]} Rg7 {[%emt 0:00:06]} 64. Rb8 {[%emt 0:00:09]} Kg5 {[%emt 0:00:08]} 65. Rb7 {[%emt 0:00:20]} Kf4 {[%emt 0:00:05]} 66. Rc7 {[%emt 0:00:09]} Rh7 {[%emt 0:00:05]} 67. Rc5 {[%emt 0:00:39]} Be8 {[%emt 0:00:12]} 68. Rc8 {[%emt 0:00:11]} Re7 {[%emt 0:00:11]} 69. Rd8 {[%emt 0:00:48]} Ke3 {[%emt 0:00:19]} 70. Rd6 {[%emt 0:00:06]} Bh5 {[%emt 0:00:40]} 71. Kc1 {[%emt 0:00:36]} Be2 {[%emt 0:00:51]} 72. Rh6 {[%emt 0:00:17]} Rf7 {[%emt 0:00:06]} 0-1

[Event "XVIII Orsha GM 2020"]
[Site "Orsha"]
[Date "2020.01.19"]
[Round "3.2"]
[White "Zhukovskiy, Vadim M."]
[Black "Afanasiev, Nikita"]
[Result "1/2-1/2"]
[ECO "B22"]
[WhiteElo "1898"]
[BlackElo "2516"]
[Annotator "ChessBase"]
[PlyCount "53"]
[EventDate "2020.01.18"]
[EventType "tourn"]
[EventCountry "BLR"]
[SourceTitle "playchess.com"]
[Source "ChessBase"]
[SourceQuality "1"]
[TimeControl "5400+30"]

1. e4 {[%emt 0:00:35]} c5 {[%emt 0:00:00]} 2. Nf3 {[%emt 0:00:37]} Nc6 {[%emt 0:00:00]} 3. c3 {[%emt 0:01:21]} Nf6 {[%emt 0:03:44]} 4. e5 {[%emt 0:00:12]} Nd5 {[%emt 0:00:06]} 5. Bc4 {[%emt 0:00:52]} Nb6 {[%emt 0:00:14]} 6. Bb3 {[%emt 0:00:04]} c4 {[%emt 0:00:51]} 7. Bc2 {[%emt 0:00:05]} d6 {[%emt 0:00:06]} 8. exd6 {[%emt 0:00:06]} Qxd6 {[%emt 0:00:07]} 9. O-O {[%emt 0:00:05]} Bg4 {[%emt 0:00:37]} 10. Re1 {[%emt 0:00:05]} Ne5 {[%emt 0:07:27]} 11. Rxe5 {[%emt 0:00:24]} Bxf3 {[%emt 0:00:03]} 12. Qe1 {[%emt 0:00:05]} Bc6 {[%emt 0:01:34]} 13. b3 {[%emt 0:03:52]} e6 {[%emt 0:15:03]} 14. Na3 {[%emt 0:04:38]} cxb3 {[%emt 0:04:03]} 15. axb3 {[%emt 0:00:20]} Qc7 {[%emt 0:00:07]} 16. Nb5 {[%emt 0:03:08]} Bxb5 {[%emt 0:00:06]} 17. Rxb5 {[%emt 0:00:03]} a6 {[%emt 0:00:08]} 18. Rh5 {[%emt 0:01:19]} g6 {[%emt 0:01:11]} 19. Rh3 {[%emt 0:02:18]} Bg7 {[%emt 0:06:18]} 20. Ba3 {[%emt 0:00:45]} Nd5 {[%emt 0:00:17]} 21. Qe4 {[%emt 0:08:02]} O-O-O {[%emt 0:09:52]} 22. Rd3 {[%emt 0:28:34]} Nf4 {[%emt 0:02:52]} 23. Rxd8+ {[%emt 0:01:39]} Rxd8 {[%emt 0:00:03]} 24. Rd1 {[%emt 0:12:29]} f5 {[%emt 0:11:59]} 25. Qe3 {[%emt 0:01:29]} e5 {[%emt 0:00:42]} 26. g3 {[%emt 0:04:57]} Nd5 {[%emt 0:01:04]} 27. Qc5 {[%emt 0:00:17]} 1/2-1/2

[Event "XVIII Orsha GM 2020"]
[Site "Orsha"]
[Date "2020.01.19"]
[Round "3.3"]
[White "Gleizerov, Evgeny"]
[Black "Pang, Tao"]
[Result "1/2-1/2"]
[ECO "A30"]
[WhiteElo "2508"]
[BlackElo "2367"]
[Annotator "ChessBase"]
[PlyCount "28"]
[EventDate "2020.01.18"]
[EventType "tourn"]
[EventCountry "BLR"]
[SourceTitle "playchess.com"]
[Source "ChessBase"]
[SourceQuality "1"]
[TimeControl "5400+30"]

1. d4 {[%emt 0:00:00]} d5 {[%emt 0:00:03]} 2. c4 {[%emt 0:00:00]} e6 {[%emt 0:00:10]} 3. g3 {[%emt 0:00:38]} dxc4 {[%emt 0:01:02]} 4. Bg2 {[%emt 0:00:05]} c5 {[%emt 0:00:44]} 5. Nf3 {[%emt 0:00:22]} Nc6 {[%emt 0:00:59]} 6. Qa4 {[%emt 0:08:21]} cxd4 {[%emt 0:07:07]} 7. Nxd4 {[%emt 0:02:33]} Qxd4 {[%emt 0:16:19]} 8. Bxc6+ {[%emt 0:00:12]} Bd7 {[%emt 0:00:28]} 9. Be3 {[%emt 0:00:24]} Bxc6 {[%emt 0:01:54]} 10. Qxc6+ {[%emt 0:00:07]} Qd7 {[%emt 0:02:28]} 11. Qxc4 {[%emt 0:00:16]} Nf6 {[%emt 0:05:41]} 12. Nc3 {[%emt 0:01:21]} Rc8 {[%emt 0:01:23]} 13. Qb3 {[%emt 0:00:50]} Bc5 {[%emt 0:00:12]} 14. Bxc5 {[%emt 1:21:51]} Rxc5 {[%emt 0:58:30]} 1/2-1/2

[Event "XVIII Orsha GM 2020"]
[Site "Orsha"]
[Date "2020.01.19"]
[Round "3.4"]
[White "Zarubitski, Viachaslau"]
[Black "Nozdrachev, Leonid"]
[Result "1/2-1/2"]
[ECO "C65"]
[WhiteElo "2451"]
[BlackElo "2404"]
[Annotator "ChessBase"]
[PlyCount "124"]
[EventDate "2020.01.18"]
[EventType "tourn"]
[EventCountry "BLR"]
[SourceTitle "playchess.com"]
[Source "ChessBase"]
[SourceQuality "1"]
[TimeControl "5400+30"]

1. e4 {[%emt 0:00:00]} e5 {[%emt 0:00:00]} 2. Nf3 {[%emt 0:00:00]} Nc6 {[%emt 0:00:00]} 3. Bb5 {[%emt 0:00:00]} Nf6 {[%emt 0:00:00]} 4. d3 {[%emt 0:00:00]} Bc5 {[%emt 0:00:00]} 5. Bxc6 {[%emt 0:00:05]} dxc6 {[%emt 0:00:05]} 6. h3 {[%emt 0:00:05]} O-O {[%emt 0:05:41]} 7. O-O {[%emt 0:00:09]} Re8 {[%emt 0:00:12]} 8. Be3 {[%emt 0:00:20]} Nd7 {[%emt 0:04:51]} 9. Nc3 {[%emt 0:00:55]} Bf8 {[%emt 0:01:04]} 10. Ne2 {[%emt 0:06:29]} Nc5 {[%emt 0:02:51]} 11. Ng3 {[%emt 0:08:12]} g6 {[%emt 0:03:20]} 12. Nxe5 {[%emt 0:03:13]} Rxe5 {[%emt 0:02:31]} 13. d4 {[%emt 0:00:06]} Rxe4 {[%emt 0:03:13]} 14. dxc5 {[%emt 0:00:05]} Qxd1 {[%emt 0:01:43]} 15. Raxd1 {[%emt 0:18:37]} Re8 {[%emt 0:00:23]} 16. Bd4 {[%emt 0:02:55]} f5 {[%emt 0:05:27]} 17. Rfe1 {[%emt 0:05:18]} Rxe1+ {[%emt 0:07:51]} 18. Rxe1 {[%emt 0:00:00]} Kf7 {[%emt 0:00:27]} 19. Ne2 {[%emt 0:01:32]} b6 {[%emt 0:02:23]} 20. Nf4 {[%emt 0:01:33]} bxc5 {[%emt 0:00:34]} 21. Be5 {[%emt 0:07:34]} Bd6 {[%emt 0:05:47]} 22. c4 {[%emt 0:01:06]} a5 {[%emt 0:03:36]} 23. Nd3 {[%emt 0:13:03]} Be6 {[%emt 0:03:03]} 24. Rc1 {[%emt 0:00:38]} a4 {[%emt 0:02:25]} 25. f4 {[%emt 0:00:34]} Rd8 {[%emt 0:04:22]} 26. Kf2 {[%emt 0:02:00]} Bxe5 {[%emt 0:00:58]} 27. Nxe5+ {[%emt 0:00:05]} Kf6 {[%emt 0:00:11]} 28. Ke3 {[%emt 0:04:25]} Rd4 {[%emt 0:02:52]} 29. b3 {[%emt 0:06:25]} g5 {[%emt 0:05:37]} 30. g3 {[%emt 0:03:41]} gxf4+ {[%emt 0:05:07]} 31. gxf4 {[%emt 0:00:01]} Re4+ {[%emt 0:00:15]} 32. Kf3 {[%emt 0:00:08]} Bf7 {[%emt 0:00:33]} 33. Nd7+ {[%emt 0:05:27]} Kg7 {[%emt 0:10:34]} 34. Nxc5 {[%emt 0:01:40]} Bh5+ {[%emt 0:00:41]} 35. Kg3 {[%emt 0:00:06]} Re2 {[%emt 0:01:58]} 36. Nxa4 {[%emt 0:01:25]} Rxa2 {[%emt 0:00:12]} 37. Nc5 {[%emt 0:03:53]} Ra5 {[%emt 0:02:06]} 38. Na4 {[%emt 0:02:30]} Bf7 {[%emt 0:01:04]} 39. Kf2 {[%emt 0:01:01]} Kf6 {[%emt 0:00:09]} 40. Ke3 {[%emt 0:00:34]} c5 {[%emt 0:02:09]} 41. Kd2 {[%emt 0:01:08]} Be8 {[%emt 0:01:27]} 42. Nb2 {[%emt 0:00:07]} Bc6 {[%emt 0:01:09]} 43. Kc3 {[%emt 0:00:06]} Be4 {[%emt 0:02:23]} 44. Na4 {[%emt 0:00:15]} Bc6 {[%emt 0:00:29]} 45. Nxc5 {[%emt 0:00:38]} Ra2 {[%emt 0:02:57]} 46. Re1 {[%emt 0:00:43]} Bg2 {[%emt 0:00:15]} 47. Re6+ {[%emt 0:01:28]} Kf7 {[%emt 0:00:41]} 48. Rh6 {[%emt 0:01:09]} Kg7 {[%emt 0:01:41]} 49. Ra6 {[%emt 0:01:02]} Rxa6 {[%emt 0:01:15]} 50. Nxa6 {[%emt 0:00:01]} Bxh3 {[%emt 0:01:15]} 51. Nxc7 {[%emt 0:00:19]} Bg2 {[%emt 0:00:34]} 52. Kd4 {[%emt 0:00:27]} h5 {[%emt 0:00:36]} 53. Ke3 {[%emt 0:01:25]} h4 {[%emt 0:00:51]} 54. Kf2 {[%emt 0:00:51]} Be4 {[%emt 0:00:15]} 55. Ne6+ {[%emt 0:00:59]} Kg6 {[%emt 0:01:54]} 56. Ng5 {[%emt 0:00:53]} Kh5 {[%emt 0:00:58]} 57. c5 {[%emt 0:00:28]} Bd5 {[%emt 0:00:49]} 58. Nf3 {[%emt 0:00:40]} Kg4 {[%emt 0:01:00]} 59. Nd4 {[%emt 0:00:25]} h3 {[%emt 0:02:46]} 60. Kg1 {[%emt 0:01:06]} Kg3 {[%emt 0:00:30]} 61. Ne2+ Kf3 {[%emt 0:00:30]} 62. Nd4+ {[%emt 0:01:00]} Kxf4 {[%emt 0:00:30]} 1/2-1/2